fUST/lending_fUST_20250828
["ID","MTS","AMOUNT","RATE_DAILY","PERIOD"]
[381819647,1756359046792,-493.74,0.00020184,2]
[381819649,1756359046803,-481.43382804,0.00020184,2]
[381819651,1756359046813,-481.29,0.00020184,2]
[381819653,1756359046823,-480.0,0.00020184,2]
[381819656,1756359046833,-556.25,0.00020184,2]
[381819658,1756359046844,-1085.19,0.00020184,2]
[381819660,1756359046854,-2325.64,0.00020184,2]
[381819662,1756359046865,-1891.41,0.00020184,2]
[381819664,1756359046876,-480.0,0.00020184,2]
[381819666,1756359046886,-480.0,0.00020184,2]
[381819668,1756359046897,-480.0,0.00020184,2]
[381819671,1756359046908,-855.65,0.00020184,2]
[381819673,1756359046918,-500.0,0.00020185,2]
[381819675,1756359046928,-480.0,0.00020185,2]
[381819677,1756359046938,-480.0,0.00020185,2]
[381819679,1756359046949,-480.0,0.00020185,2]
[381819681,1756359046959,-480.0,0.00020185,2]
[381819683,1756359046970,-480.0,0.00020185,2]
[381819685,1756359046984,-480.0,0.00020185,2]
[381819688,1756359046995,-480.0,0.00020185,2]
[381819690,1756359047006,-480.0,0.00020185,2]
[381819692,1756359047017,-480.0,0.00020185,2]
[381819694,1756359047028,-480.0,0.00020185,2]
[381819696,1756359047038,-480.0,0.00020185,2]
[381819698,1756359047050,-480.0,0.00020185,2]
[381819701,1756359047060,-480.0,0.00020185,2]
[381819703,1756359047071,-480.0,0.00020185,2]
[381819705,1756359047080,-481.45179299,0.00020185,2]
[381819707,1756359047089,-480.0,0.00020185,2]
[381819709,1756359047098,-480.0,0.00020185,2]
[381819744,1756359047405,-481.74337197,0.00020185,2]
[381819746,1756359047423,-480.0,0.00020185,2]
[381819749,1756359047441,-480.0,0.00020185,2]
[381819752,1756359047455,-480.0,0.00020185,2]
[381819754,1756359047465,-480.0,0.00020185,2]
[381819756,1756359047474,-481.65838293,0.00020185,2]
[381819758,1756359047484,-480.0,0.00020185,2]
[381819760,1756359047493,-480.0,0.00020185,2]
[381819761,1756359047502,-480.0,0.00020185,2]
[381819763,1756359047512,-480.0,0.00020185,2]
[381819764,1756359047522,-480.0,0.00020185,2]
[381819765,1756359047532,-480.0,0.00020185,2]
[381819767,1756359047541,-480.0,0.00020185,2]
[381819769,1756359047550,-480.0,0.00020185,2]
[381819770,1756359047561,-295.90600992,0.00020185,2]
[381819771,1756359047570,-480.0,0.00020185,2]
[381819773,1756359047580,-480.0,0.00020185,2]
[381819774,1756359047589,-480.0,0.00020185,2]
[381819775,1756359047599,-480.0,0.00020185,2]
[381819777,1756359047608,-480.0,0.00020185,2]
[381819778,1756359047617,-222.85630151,0.00020185,2]
[381819779,1756359047626,-480.0,0.00020185,2]
[381819780,1756359047636,-381.91875296,0.00020185,2]
[381819781,1756359047645,-480.0,0.00020185,2]
[381819782,1756359047654,-480.0,0.00020185,2]
[381819783,1756359047663,-480.0,0.00020185,2]
[381819784,1756359047672,-481.97826303,0.00020185,2]
[381819785,1756359047681,-480.0,0.00020185,2]
[381819786,1756359047691,-477.3644018,0.00020185,2]
[381819787,1756359047701,-480.0,0.00020185,2]
[381819788,1756359047710,-480.0,0.00020185,2]
[381819789,1756359047720,-480.0,0.00020185,2]
[381819790,1756359047730,-480.0,0.00020185,2]
[381819791,1756359047741,-480.0,0.00020185,2]
[381819792,1756359047750,-480.0,0.00020185,2]
[381819793,1756359047759,-480.0,0.00020185,2]
[381819794,1756359047769,-480.0,0.00020185,2]
[381819795,1756359047778,-480.0,0.00020185,2]
[381819796,1756359047788,-480.0,0.00020185,2]
[381819797,1756359047797,-480.0,0.00020185,2]
[381819798,1756359047807,-480.0,0.00020185,2]
[381819799,1756359047816,-480.0,0.00020185,2]
[381819800,1756359047825,-480.0,0.00020185,2]
[381819801,1756359047835,-480.0,0.00020185,2]
[381819802,1756359047844,-481.2369396,0.00020185,2]
[381819803,1756359047854,-431.50523187,0.00020185,2]
[381819804,1756359047864,-480.0,0.00020185,2]
[381819805,1756359047873,-482.43047213,0.00020185,2]
[381819806,1756359047883,-480.0,0.00020185,2]
[381819807,1756359047892,-480.0,0.00020185,2]
[381819808,1756359047902,-480.0,0.00020185,2]
[381819809,1756359047911,-480.0,0.00020185,2]
[381819810,1756359047920,-480.0,0.00020185,2]
[381819811,1756359047929,-480.0,0.00020185,2]
[381819812,1756359047939,-482.08815828,0.00020185,2]
[381819813,1756359047948,-480.0,0.00020185,2]
[381819814,1756359047957,-480.0,0.00020185,2]
[381819815,1756359047966,-480.0,0.00020185,2]
[381819816,1756359047976,-480.0,0.00020185,2]
[381819817,1756359047988,-480.0,0.00020185,2]
[381819818,1756359047998,-482.80234624,0.00020185,2]
[381819819,1756359048007,-480.0,0.00020185,2]
[381819820,1756359048016,-480.0,0.00020185,2]
[381819821,1756359048027,-480.0,0.00020185,2]
[381819823,1756359048036,-480.0,0.00020185,2]
[381819825,1756359048045,-480.0,0.00020185,2]
[381819827,1756359048055,-480.0,0.00020185,2]
[381819829,1756359048065,-842.45,0.00020185,2]
[381819830,1756359048074,-480.0,0.00020185,2]
[381819831,1756359048084,-480.0,0.00020185,2]
[381819833,1756359048094,-480.0,0.00020185,2]
[381819835,1756359048103,-480.0,0.00020185,2]
[381819837,1756359048113,-480.0,0.00020185,2]
[381819839,1756359048122,-546.14,0.00020185,2]
[381819840,1756359048131,-480.0,0.00020185,2]
[381819843,1756359048140,-511.82,0.00020185,2]
[381819845,1756359048151,-480.0,0.00020185,2]
[381819847,1756359048159,-480.0,0.00020185,2]
[381819849,1756359048169,-480.0,0.00020185,2]
[381819851,1756359048178,-480.0,0.00020185,2]
[381819853,1756359048187,-480.0,0.00020185,2]
[381819855,1756359048196,-480.0,0.00020185,2]
[381819856,1756359048205,-480.0,0.00020185,2]
[381819859,1756359048215,-480.0,0.00020185,2]
[381819861,1756359048225,-480.0,0.00020185,2]
[381819863,1756359048234,-510.83,0.00020185,2]
[381819864,1756359048244,-290.1613484,0.00020185,2]
[381819866,1756359048253,-480.0,0.00020185,2]
[381819869,1756359048263,-691.07,0.00020185,2]
[381819871,1756359048272,-480.0,0.00020185,2]
[381819873,1756359048282,-480.0,0.00020185,2]
[381819875,1756359048290,-480.0,0.00020185,2]
[381819876,1756359048300,-570.8,0.00020185,2]
[381819879,1756359048309,-480.0,0.00020185,2]
[381819881,1756359048319,-480.0,0.00020185,2]
[381819883,1756359048328,-291.3642844,0.00020185,2]
[381820108,1756359050590,-480.0,0.00019897,2]
[381820110,1756359050599,-41.46156207,0.0001991,2]
[381822977,1756359103850,-205.9939828,0.00018905,2]
[381822979,1756359110204,-3.0882046,0.00018905,2]
[381822980,1756359110226,-196.44033005,0.00019796,2]
[381822981,1756359111160,526.855237,0.00013699,2]
[381822989,1756359148765,-151.70607044,0.00019795,2]
[381822994,1756359176147,-128.06036454,0.00019795,2]
[381822995,1756359176172,-360.00562766,0.00019796,2]
[381822999,1756359180722,-139.99437234,0.00019796,2]
[381823000,1756359180744,-63.69593606,0.00019796,2]
[381823001,1756359183706,-199.782938,0.00019795,2]
[381823004,1756359186553,-100.217062,0.00019795,2]
[381823005,1756359186576,-67.1774455,0.00019796,2]
[381823015,1756359243083,551.73047829,0.00030418,60]
[381823022,1756359272283,-167.3945075,0.00019696,2]
[381823023,1756359272334,-8744.75354627,0.00019796,2]
[381823024,1756359272456,-10000.01,0.00019796,2]
[381823025,1756359272636,-10000.01,0.00019796,2]
[381823026,1756359272808,-3727.92497376,0.00019796,2]
[381823027,1756359272836,-436.30406394,0.00019796,2]
[381823028,1756359272867,-239.07107333,0.00019796,2]
[381823029,1756359272896,-500.0,0.00019796,2]
[381823030,1756359272967,-193.40977794,0.00019796,2]
[381823031,1756359273011,-306.59022206,0.00019796,2]
[381823032,1756359273041,-331.760948,0.00019796,2]
[381823033,1756359273071,-500.0,0.00019796,2]
[381823034,1756359273100,-500.0,0.00019796,2]
[381823035,1756359273130,-500.0,0.00019796,2]
[381823036,1756359273159,-500.0,0.00019796,2]
[381823037,1756359273189,-500.0,0.00019796,2]
[381823038,1756359273219,-500.0,0.00019796,2]
[381823039,1756359273247,-500.0,0.00019796,2]
[381823040,1756359273280,-273.62313765,0.00019796,2]
[381823041,1756359273308,-480.0,0.00019796,2]
[381823042,1756359273539,-216.06138458,0.00019797,2]
[381823043,1756359273583,-10000.01,0.00019797,2]
[381823044,1756359273607,-10000.01,0.00019797,2]
[381823045,1756359273625,-10000.01,0.00019797,2]
[381823046,1756359273819,-3376.0426669,0.00019797,2]
[381823047,1756359273841,-3247.9246662,0.00019797,2]
[381823048,1756359273969,-2156.0,0.00019848,2]
[381823049,1756359273998,-480.0,0.00019894,2]
[381823050,1756359274030,-480.0,0.00019894,2]
[381823051,1756359274059,-604.0,0.00019894,2]
[381823052,1756359274089,-480.0,0.00019894,2]
[381823053,1756359274120,-655.16,0.00019894,2]
[381823054,1756359274211,-289.69,0.00019894,2]
[381823058,1756359282190,-203.73446725,0.0001972,2]
[381823059,1756359282219,-425.75121644,0.00019795,2]
[381823060,1756359282246,-252.62479307,0.00019795,2]
[381823061,1756359282274,-482.48868284,0.00019796,2]
[381823062,1756359282307,-1794.69,0.00019894,2]
[381823063,1756359282336,-1810.18,0.00019894,2]
[381823064,1756359282444,-61.0716808,0.00019894,2]
[381823065,1756359282476,-418.9283192,0.00019894,2]
[381823066,1756359282504,-480.0,0.00019894,2]
[381823067,1756359282532,-480.0,0.00019894,2]
[381823068,1756359282560,-480.0,0.00019894,2]
[381823069,1756359282588,-480.0,0.00019894,2]
[381823070,1756359282616,-1103.33,0.00019894,2]
[381823071,1756359282644,-480.0,0.00019894,2]
[381823072,1756359282672,-480.0,0.00019894,2]
[381823073,1756359282700,-480.0,0.00019896,2]
[381823074,1756359282796,-480.0,0.00019896,2]
[381823075,1756359282824,-480.0,0.00019896,2]
[381823076,1756359282852,-480.0,0.00019896,2]
[381823077,1756359282880,-480.0,0.00019896,2]
[381823078,1756359282908,-480.0,0.00019896,2]
[381823079,1756359282935,-480.0,0.00019896,2]
[381823080,1756359282964,-480.0,0.00019896,2]
[381823081,1756359282991,-480.0,0.00019896,2]
[381823082,1756359283023,-480.0,0.00019896,2]
[381823083,1756359283050,-480.0,0.00019896,2]
[381823086,1756359283344,-480.0,0.00019896,2]
[381823087,1756359283372,-480.0,0.00019896,2]
[381823088,1756359283400,-481.71,0.00019896,2]
[381823089,1756359283427,-480.0,0.00019896,2]
[381823090,1756359283455,-480.0,0.00019896,2]
[381823091,1756359283484,-480.0,0.00019896,2]
[381823092,1756359283512,-480.0,0.00019896,2]
[381823093,1756359283541,-480.0,0.00019896,2]
[381823094,1756359283569,-733.73,0.00019896,2]
[381823095,1756359283596,-369.13,0.00019896,2]
[381823096,1756359283747,-110.87,0.00019896,2]
[381823097,1756359283774,-480.0,0.00019896,2]
[381823098,1756359283802,-1116.03,0.00019896,2]
[381823099,1756359283830,-480.0,0.00019896,2]
[381823100,1756359283859,-480.0,0.00019896,2]
[381823101,1756359283886,-480.0,0.00019896,2]
[381823102,1756359283914,-580.85,0.00019896,2]
[381823103,1756359283942,-480.0,0.00019896,2]
[381823104,1756359283970,-480.0,0.00019896,2]
[381823105,1756359283998,-144.51,0.00019896,2]
[381823106,1756359284164,-335.49,0.00019896,2]
[381823107,1756359284195,-480.0,0.00019896,2]
[381823108,1756359284221,-480.0,0.00019896,2]
[381823109,1756359284250,-731.84,0.00019896,2]
[381823110,1756359284277,-310.77558291,0.00019896,2]
[381823111,1756359284307,-480.0,0.00019896,2]
[381823112,1756359284336,-480.0,0.00019896,2]
[381823113,1756359284367,-480.0,0.00019896,2]
[381823114,1756359284398,-480.0,0.00019896,2]
[381823115,1756359284428,-480.0,0.00019896,2]
[381823116,1756359284457,-43.79883418,0.00019896,2]
[381823117,1756359284544,-436.20116582,0.00019896,2]
[381823118,1756359284573,-480.0,0.00019896,2]
[381823119,1756359284602,-481.04,0.00019896,2]
[381823120,1756359284631,-480.0,0.00019896,2]
[381823121,1756359284660,-480.0,0.00019896,2]
[381823122,1756359284687,-480.79103812,0.00019896,2]
[381823123,1756359284717,-480.0,0.00019896,2]
[381823124,1756359284747,-480.0,0.00019896,2]
[381823125,1756359284774,-480.0,0.00019896,2]
[381823126,1756359284802,-480.7621499,0.00019896,2]
[381823127,1756359284834,-2.42129232,0.00019896,2]
[381823128,1756359285103,-477.57870768,0.00019896,2]
[381823129,1756359285375,-480.0,0.00019896,2]
[381823130,1756359285403,-480.0,0.00019896,2]
[381823131,1756359285432,-589.61,0.00019896,2]
[381823132,1756359285461,-480.0,0.00019896,2]
[381823133,1756359285490,-500.07,0.00019896,2]
[381823134,1756359285520,-480.0,0.00019896,2]
[381823135,1756359285549,-480.0,0.00019896,2]
[381823136,1756359285578,-480.87967843,0.00019896,2]
[381823137,1756359285607,-480.0,0.00019896,2]
[381823138,1756359285775,-480.0,0.00019896,2]
[381823139,1756359285804,-480.0,0.00019896,2]
[381823140,1756359285832,-480.0,0.00019896,2]
[381823141,1756359285860,-480.0,0.00019896,2]
[381823142,1756359285889,-480.0,0.00019896,2]
[381823143,1756359285917,-1109.98,0.00019896,2]
[381823144,1756359285946,-480.0,0.00019896,2]
[381823145,1756359285975,-480.0,0.00019896,2]
[381823146,1756359286004,-480.0,0.00019896,2]
[381823147,1756359286164,-480.0,0.00019896,2]
[381823148,1756359286192,-700.97,0.00019896,2]
[381823149,1756359286220,-480.0,0.00019896,2]
[381823150,1756359286247,-481.93335612,0.00019896,2]
[381823151,1756359286275,-480.0,0.00019896,2]
[381823152,1756359286302,-480.0,0.00019896,2]
[381823153,1756359286330,-480.0,0.00019896,2]
[381823154,1756359286358,-960.55,0.00019896,2]
[381823155,1756359286386,-433.10328776,0.00019896,2]
[381823156,1756359287919,-402.67404102,0.00019894,2]
[381823157,1756359287935,-77.32595898,0.00019894,2]
[381823158,1756359287946,-46.89671224,0.00019896,2]
[381823159,1756359287957,-355.77732878,0.00019896,2]
[381823160,1756359287973,-124.22267122,0.00019896,2]
[381823161,1756359287983,-480.0,0.00019896,2]
[381823162,1756359287994,-356.32732878,0.00019896,2]
[381823163,1756359288022,-480.0,0.00019896,2]
[381823165,1756359292212,-1755.39,0.00019894,2]
[381823166,1756359292244,-1583.69267122,0.00019896,2]
[381823167,1756359292278,-607.12961876,0.00019896,2]
[381823168,1756359292314,-480.0,0.00019896,2]
[381823169,1756359292346,-480.0,0.00019896,2]
[381823170,1756359292462,-480.0,0.00019896,2]
[381823171,1756359292492,-480.0,0.00019896,2]
[381823172,1756359292530,-480.0,0.00019896,2]
[381823173,1756359292560,-480.0,0.00019896,2]
[381823174,1756359292591,-480.0,0.00019896,2]
[381823175,1756359292621,-480.65231853,0.00019896,2]
[381823176,1756359292651,-792.56,0.00019896,2]
[381823177,1756359292680,-480.0,0.00019896,2]
[381823178,1756359292710,-480.0,0.00019896,2]
[381823179,1756359292740,-124.62536294,0.00019896,2]
[381823180,1756359292876,-484.33463706,0.00019896,2]
[381823181,1756359292906,-480.0,0.00019896,2]
[381823182,1756359293339,-480.0,0.00019896,2]
[381823183,1756359293373,-480.0,0.00019896,2]
[381823184,1756359293401,-480.0,0.00019896,2]
[381823185,1756359293432,-480.0,0.00019896,2]
[381823186,1756359293461,-480.0,0.00019896,2]
[381823187,1756359293489,-480.0,0.00019896,2]
[381823188,1756359293518,-480.0,0.00019896,2]
[381823189,1756359293547,-480.0,0.00019896,2]
[381823190,1756359293696,-482.37622953,0.00019896,2]
[381823191,1756359293723,-480.0,0.00019896,2]
[381823192,1756359293752,-664.95,0.00019896,2]
[381823193,1756359293780,-480.0,0.00019896,2]
[381823194,1756359293807,-480.0,0.00019896,2]
[381823195,1756359293835,-481.8316121,0.00019896,2]
[381823196,1756359293863,-480.0,0.00019896,2]
[381823197,1756359293891,-480.0,0.00019896,2]
[381823198,1756359293920,-480.0,0.00019896,2]
[381823199,1756359293948,-480.0,0.00019896,2]
[381823200,1756359294024,-379.49065755,0.00019896,2]
[381823201,1756359294052,-481.6821399,0.00019896,2]
[381823202,1756359294082,-480.0,0.00019896,2]
[381823203,1756359294111,-480.0,0.00019896,2]
[381823204,1756359294140,-482.70932588,0.00019896,2]
[381823205,1756359294168,-480.0,0.00019896,2]
[381823206,1756359294197,-480.0,0.00019896,2]
[381823207,1756359294224,-480.0,0.00019896,2]
[381823208,1756359294251,-480.0,0.00019896,2]
[381823209,1756359294278,-480.0,0.00019896,2]
[381823210,1756359294307,-112.24575334,0.00019896,2]
[381823211,1756359294420,-367.75424666,0.00019896,2]
[381823212,1756359294449,-480.0,0.00019896,2]
[381823213,1756359294476,-480.0,0.00019896,2]
[381823214,1756359294504,-480.0,0.00019896,2]
[381823215,1756359294532,-535.60713542,0.00019896,2]
[381823216,1756359294560,-480.0,0.00019896,2]
[381823217,1756359294587,-480.0,0.00019896,2]
[381823218,1756359294614,-480.0,0.00019896,2]
[381823219,1756359294642,-481.87219111,0.00019896,2]
[381823220,1756359294669,-480.0,0.00019896,2]
[381823221,1756359294698,-26.63496646,0.00019896,2]
[381823222,1756359294740,-456.2729207,0.00019896,2]
[381823223,1756359294776,-480.0,0.00019896,2]
[381823224,1756359294805,-544.66,0.00019896,2]
[381823225,1756359294834,-480.0,0.00019896,2]
[381823226,1756359294862,-480.96528745,0.00019896,2]
[381823227,1756359294898,-480.0,0.00019897,2]
[381823228,1756359294927,-1095.77,0.00019897,2]
[381823229,1756359294955,-480.0,0.00019897,2]
[381823230,1756359294983,-480.0,0.00019897,2]
[381823231,1756359295032,-480.0,0.00019897,2]
[381823232,1756359295061,-1067.19,0.00019897,2]
[381823233,1756359295092,-1282.99,0.00019897,2]
[381823234,1756359295121,-480.0,0.00019897,2]
[381823235,1756359295149,-484.00683556,0.00019897,2]
[381823236,1756359295838,-2955.76,0.00019897,2]
[381823237,1756359295868,-1588.65,0.00019897,2]
[381823238,1756359295898,-431.19,0.00019897,2]
[381823239,1756359296057,-48.81,0.00019897,2]
[381823240,1756359296095,-839.0,0.00019897,2]
[381823241,1756359296124,-2579.48,0.00019897,2]
[381823242,1756359296154,-480.0,0.00019897,2]
[381823243,1756359297411,-3.98439478,0.00019896,2]
[381823244,1756359297432,-476.01560522,0.00019896,2]
[381823245,1756359297442,-3.98439478,0.00019897,2]
[381823246,1756359297541,-48.81,0.00019896,2]
[381823247,1756359297577,-431.19,0.00019896,2]
[381823248,1756359297586,-407.81,0.00019897,2]
[381823249,1756359297625,-2579.48,0.00019897,2]
[381823250,1756359297696,-480.0,0.00019897,2]
[381823251,1756359297721,-259.83560522,0.00019897,2]
[381823252,1756359297730,-1837.06,0.00019897,2]
[381823253,1756359297739,-8.53439478,0.00019899,2]
[381823257,1756359302266,-3112.58,0.00019894,2]
[381823258,1756359302295,-480.0,0.00019896,2]
[381823259,1756359302325,-480.0,0.00019896,2]
[381823260,1756359302354,-243.98681575,0.00019896,2]
[381823261,1756359302383,-480.0,0.00019896,2]
[381823262,1756359302491,-406.8763685,0.00019896,2]
[381823263,1756359302522,-73.1236315,0.00019896,2]
[381823264,1756359302551,-480.0,0.00019896,2]
[381823265,1756359302579,-480.0,0.00019896,2]
[381823266,1756359302608,-480.0,0.00019897,2]
[381823267,1756359302638,-300.0,0.00019898,2]
[381823268,1756359302668,-300.0,0.00019898,2]
[381823269,1756359302698,-811.93,0.00019899,2]
[381823270,1756359302727,-480.0,0.00019899,2]
[381823271,1756359302757,-480.0,0.00019899,2]
[381823272,1756359302787,-1055.13,0.00019899,2]
[381823273,1756359302893,-300.0,0.00019898,2]
[381823274,1756359302923,-480.0,0.00019899,2]
[381823275,1756359302953,-496.93,0.00019899,2]
[381823276,1756359302982,-848.87,0.00019899,2]
[381823277,1756359303014,-538.41,0.00019899,2]
[381823278,1756359303051,-1025.69,0.00019899,2]
[381823279,1756359303085,-480.0,0.00019899,2]
[381823280,1756359303117,-507.88,0.00019899,2]
[381823281,1756359303152,-164.45,0.00019899,2]
[381823282,1756359303297,-315.55,0.00019899,2]
[381823283,1756359303328,-480.0,0.00019899,2]
[381823284,1756359303358,-463.85460876,0.00019899,2]
[381823285,1756359303391,-1133.8,0.00019899,2]
[381823286,1756359303422,-1062.58,0.00019899,2]
[381823287,1756359303452,-1176.22,0.00019899,2]
[381823288,1756359303588,-300.0,0.00019898,2]
[381823289,1756359303617,-300.0,0.00019898,2]
[381823290,1756359303648,-1405.38,0.00019899,2]
[381823291,1756359303678,-480.0,0.00019899,2]
[381823292,1756359303710,-480.0,0.00019899,2]
[381823293,1756359303741,-480.0,0.00019899,2]
[381823294,1756359303771,-501.35,0.00019899,2]
[381823295,1756359303801,-480.0,0.00019899,2]
[381823296,1756359303831,-359.16,0.00019899,2]
[381823297,1756359304134,-428.23,0.00019899,2]
[381823298,1756359304169,-3912.65669868,0.000199,2]
[381823299,1756359304342,-1318.23660264,0.000199,2]
[381823300,1756359304373,-480.0,0.00019909,2]
[381823301,1756359304403,-188.39027057,0.00019909,2]
[381823302,1756359304434,-518.93,0.00019909,2]
[381823303,1756359304465,-480.0,0.00019909,2]
[381823304,1756359304495,-482.17162651,0.00019909,2]
[381823305,1756359304526,-480.0,0.00019909,2]
[381823306,1756359304555,-480.0,0.00019909,2]
[381823307,1756359304735,-480.0,0.00019909,2]
[381823308,1756359304942,-624.78,0.00019909,2]
[381823309,1756359304973,-480.0,0.00019909,2]
[381823310,1756359305003,-480.0,0.00019909,2]
[381823311,1756359305039,-480.0,0.00019909,2]
[381823312,1756359305070,-480.0,0.00019909,2]
[381823313,1756359305102,-480.0,0.00019909,2]
[381823314,1756359305136,-693.47,0.00019909,2]
[381823315,1756359305166,-480.0,0.00019909,2]
[381823316,1756359305303,-3456.62,0.00019909,2]
[381823317,1756359305332,-480.0,0.00019909,2]
[381823318,1756359305362,-480.0,0.00019909,2]
[381823319,1756359305391,-480.0,0.00019909,2]
[381823320,1756359305829,-480.0,0.00019909,2]
[381823321,1756359305859,-265.34001834,0.00019909,2]
[381823322,1756359305889,-480.0,0.00019909,2]
[381823323,1756359305918,-1137.6,0.00019909,2]
[381823324,1756359305946,-480.0,0.00019909,2]
[381823325,1756359305976,-513.15,0.00019909,2]
[381823326,1756359306005,-480.0,0.00019909,2]
[381823327,1756359306038,-480.0,0.00019909,2]
[381823328,1756359306067,-257.64996332,0.00019909,2]
[381823329,1756359306968,-305.50958486,0.00019896,2]
[381823330,1756359307022,-174.49041514,0.00019896,2]
[381823331,1756359307032,-32.27958486,0.00019898,2]
[381823332,1756359307176,-480.0,0.00019898,2]
[381823333,1756359307199,-265.34001834,0.00019898,2]
[381823334,1756359307269,-422.3803968,0.00019898,2]
[381823335,1756359307279,-57.6196032,0.00019909,2]
[381823336,1756359307375,-794.91043348,0.00019909,2]
[381823337,1756359307385,-342.68956652,0.00019909,2]
[381823338,1756359307426,-260.69043348,0.00019909,2]
[381823339,1756359307436,-219.30956652,0.00019909,2]
[381823340,1756359307456,-260.69043348,0.00019909,2]
[381823341,1756359307465,-252.45956652,0.00019909,2]
[381823342,1756359307640,-227.54043348,0.00019909,2]
[381823343,1756359307650,-252.45956652,0.00019909,2]
[381823344,1756359307667,-227.54043348,0.00019909,2]
[381823345,1756359307676,-252.45956652,0.00019909,2]
[381823346,1756359307695,-772.65043348,0.00019909,2]
[381823347,1756359307704,-337.52956652,0.00019909,2]
[381823350,1756359322275,-500.0,0.00019795,2]
[381823351,1756359322307,-500.0,0.00019795,2]
[381823352,1756359322338,-504.7285141,0.00019795,2]
[381823353,1756359322367,-199.78420667,0.00019795,2]
[381823354,1756359322395,-500.0,0.00019795,2]
[381823355,1756359322424,-500.0,0.00019795,2]
[381823356,1756359322455,-321.45402275,0.00019795,2]
[381823357,1756359322486,-500.0,0.00019795,2]
[381823358,1756359322516,-500.0,0.00019795,2]
[381823359,1756359322545,-646.02996093,0.00019795,2]
[381823360,1756359322573,-156.0165911,0.00019795,2]
[381823361,1756359322702,-343.9834089,0.00019795,2]
[381823362,1756359322730,-825.17,0.00019894,2]
[381823363,1756359322759,-480.0,0.00019896,2]
[381823364,1756359322788,-385.26578969,0.00019896,2]
[381823365,1756359322816,-1080.65,0.00019896,2]
[381823366,1756359322844,-480.0,0.00019896,2]
[381823367,1756359322874,-1086.13,0.00019896,2]
[381823368,1756359322903,-157.61160282,0.00019896,2]
[381823369,1756359323103,-322.38839718,0.00019896,2]
[381823370,1756359323131,-480.0,0.00019896,2]
[381823371,1756359323161,-480.0,0.00019896,2]
[381823372,1756359323190,-480.0,0.00019896,2]
[381823373,1756359323219,-480.0,0.00019897,2]
[381823374,1756359323249,-1112.74,0.00019899,2]
[381823375,1756359323278,-480.0,0.00019899,2]
[381823376,1756359323307,-142.47043348,0.00019909,2]
[381823377,1756359323336,-480.0,0.00019909,2]
[381823378,1756359323365,-480.0,0.00019909,2]
[381823379,1756359323505,-521.34,0.00019909,2]
[381823380,1756359323534,-480.0,0.00019909,2]
[381823381,1756359323562,-480.0,0.00019909,2]
[381823382,1756359323591,-480.0,0.00019909,2]
[381823383,1756359323620,-480.0,0.00019909,2]
[381823384,1756359323648,-497.25,0.00019909,2]
[381823385,1756359323676,-1000.89,0.00019909,2]
[381823386,1756359323704,-480.0,0.00019909,2]
[381823387,1756359323732,-160.16,0.00019909,2]
[381823388,1756359323874,-840.73,0.00019909,2]
[381823389,1756359323903,-1000.89,0.00019909,2]
[381823390,1756359323931,-480.0,0.00019909,2]
[381823391,1756359323960,-480.0,0.00019909,2]